Workbook

Sheet data (monthly)
A1: month | B1: average help wanted | C1: index: average help wanted (base year 2000) | D1: base_avg | E1: average help wanted | F1: real average help wanted base year 2000
A2: 2000-01-01 | B2: =AVERAGE(biweekly!C2:C3) -> 304.5 | C2: =(B2/$D$2)*100 -> 88.87267421 | D2: =AVERAGE(B2:B13) -> 342.625 | E2: 304.5 | F2: 88.87267421
A3: 2000-02-01 | B3: =AVERAGE(biweekly!C4:C5) -> 323 | C3: =(B3/$D$2)*100 -> 94.27216344 | E3: 323 | F3: 94.27216344
A4: 2000-03-01 | B4: =AVERAGE(biweekly!C6:C7) -> 337 | C4: 98.35826341 | E4: 337 | F4: 98.35826341
A5: 2000-04-01 | B5: =AVERAGE(biweekly!C8:C9) -> 381.5 | C5: 111.346224 | E5: 381.5 | F5: 111.346224
A6: 2000-05-01 | B6: =AVERAGE(biweekly!C10:C11) -> 354.5 | C6: 103.4658884 | E6: 354.5 | F6: 103.4658884
A7: 2000-06-01 | B7: =AVERAGE(biweekly!C12:C13) -> 361.5 | C7: 105.5089383 | E7: 361.5 | F7: 105.5089383
A8: 2000-07-01 | B8: =AVERAGE(biweekly!C14:C15) -> 345.5 | C8: 100.8391098 | E8: 345.5 | F8: 100.8391098
A9: 2000-08-01 | B9: =AVERAGE(biweekly!C16:C17) -> 411.5 | C9: 120.1021525 | E9: 411.5 | F9: 120.1021525
A10: 2000-09-01 | B10: =AVERAGE(biweekly!C18:C19) -> 395.5 | C10: 115.432324 | E10: 395.5 | F10: 115.432324
A11: 2000-10-01 | B11: =AVERAGE(biweekly!C20:C21) -> 353.5 | C11: 103.1740241 | E11: 353.5 | F11: 103.1740241
A12: 2000-11-01 | B12: =AVERAGE(biweekly!C22:C23) -> 299 | C12: 87.26742065 | E12: 299 | F12: 87.26742065
A13: 2000-12-01 | B13: =AVERAGE(biweekly!C24:C25) -> 244.5 | C13: 71.36081722 | E13: 244.5 | F13: 71.36081722
A14: 2001-01-01 | B14: =AVERAGE(biweekly!C26:C27) -> 298.5 | C14: 87.12148851 | E14: 298.5 | F14: 87.12148851
A15: 2001-02-01 | B15: =AVERAGE(biweekly!C28:C29) -> 280 | C15: 81.72199927 | E15: 280 | F15: 81.72199927
A16: 2001-03-01 | B16: =AVERAGE(biweekly!C30:C31) -> 275 | C16: 80.26267785 | E16: 275 | F16: 80.26267785
A17: 2001-04-01 | B17: =AVERAGE(biweekly!C32:C33) -> 256.5 | C17: 74.86318862 | E17: 256.5 | F17: 74.86318862
A18: 2001-05-01 | B18: =AVERAGE(biweekly!C34:C35) -> 270 | C18: 78.80335644 | E18: 270 | F18: 78.80335644
A19: 2001-06-01 | B19: =AVERAGE(biweekly!C36:C37) -> 280.5 | C19: 81.86793141 | E19: 280.5 | F19: 81.86793141
A20: 2001-07-01 | B20: =AVERAGE(biweekly!C38:C39) -> 251.5 | C20: 73.4038672 | E20: 251.5 | F20: 73.4038672
A21: 2001-08-01 | B21: =AVERAGE(biweekly!C40:C41) -> 322 | C21: 93.98029916 | E21: 322 | F21: 93.98029916
A22: 2001-09-01 | B22: =AVERAGE(biweekly!C42:C43) -> 283 | C22: 82.59759212 | E22: 283 | F22: 82.59759212
A23: 2001-10-01 | B23: =AVERAGE(biweekly!C44:C45) -> 248.5 | C23: 72.52827435 | E23: 248.5 | F23: 72.52827435
A24: 2001-11-01 | B24: =AVERAGE(biweekly!C46:C47) -> 209 | C24: 60.99963517 | E24: 209 | F24: 60.99963517
A25: 2001-12-01 | B25: =AVERAGE(biweekly!C48:C49) -> 184 | C25: 53.70302809 | E25: 184 | F25: 53.70302809
A26: 2002-01-01 | B26: =AVERAGE(biweekly!C50:C51) -> 189.5 | C26: 55.30828165 | E26: 189.5 | F26: 55.30828165
A27: 2002-02-01 | B27: =AVERAGE(biweekly!C52:C53) -> 190.5 | C27: 55.60014593 | E27: 190.5 | F27: 55.60014593
A28: 2002-03-01 | B28: =AVERAGE(biweekly!C54:C55) -> 220 | C28: 64.21014228 | E28: 220 | F28: 64.21014228
A29: 2002-04-01 | B29: =AVERAGE(biweekly!C56:C57) -> 227.5 | C29: 66.39912441 | E29: 227.5 | F29: 66.39912441
A30: 2002-05-01 | B30: =AVERAGE(biweekly!C58:C59) -> 221 | C30: 64.50200657 | E30: 221 | F30: 64.50200657
A31: 2002-06-01 | B31: =AVERAGE(biweekly!C60:C61) -> 208 | C31: 60.70777089 | E31: 208 | F31: 60.70777089
A32: 2002-07-01 | B32: =AVERAGE(biweekly!C62:C63) -> 236 | C32: 68.87997081 | E32: 236 | F32: 68.87997081
A33: 2002-08-01 | B33: =AVERAGE(biweekly!C64:C65) -> 256.5 | C33: 74.86318862 | E33: 256.5 | F33: 74.86318862
A34: 2002-09-01 | B34: =AVERAGE(biweekly!C66:C67) -> 230.5 | C34: 67.27471726 | E34: 230.5 | F34: 67.27471726
A35: 2002-10-01 | B35: =AVERAGE(biweekly!C68:C69) -> 222.5 | C35: 64.93980299 | E35: 222.5 | F35: 64.93980299
A36: 2002-11-01 | B36: =AVERAGE(biweekly!C70:C71) -> 203.5 | C36: 59.39438161 | E36: 203.5 | F36: 59.39438161
A37: 2002-12-01 | B37: =AVERAGE(biweekly!C72:C73) -> 138 | C37: 40.27727107 | E37: 138 | F37: 40.27727107
A38: 2003-01-01 | B38: =AVERAGE(biweekly!C74:C75) -> 168 | C38: 49.03319956 | E38: 168 | F38: 49.03319956
A39: 2003-02-01 | B39: =AVERAGE(biweekly!C76:C77) -> 139 | C39: 40.56913535 | E39: 139 | F39: 40.56913535
A40: 2003-03-01 | B40: =AVERAGE(biweekly!C78:C79) -> 210 | C40: 61.29149945 | E40: 210 | F40: 61.29149945
A41: 2003-04-01 | B41: =AVERAGE(biweekly!C80:C81) -> 224 | C41: 65.37759942 | E41: 224 | F41: 65.37759942
A42: 2003-05-01 | B42: =AVERAGE(biweekly!C82:C83) -> 228.5 | C42: 66.69098869 | E42: 228.5 | F42: 66.69098869
A43: 2003-06-01 | B43: =AVERAGE(biweekly!C84:C85) -> 226.5 | C43: 66.10726012 | E43: 226.5 | F43: 66.10726012
A44: 2003-07-01 | B44: =AVERAGE(biweekly!C86:C87) -> 190 | C44: 55.45421379 | E44: 190 | F44: 55.45421379
A45: 2003-08-01 | B45: =AVERAGE(biweekly!C88:C89) -> 214 | C45: 62.45895659 | E45: 214 | F45: 62.45895659
A46: 2003-09-01 | B46: =AVERAGE(biweekly!C90:C91) -> 211 | C46: 61.58336374 | E46: 211 | F46: 61.58336374
A47: 2003-10-01 | B47: =AVERAGE(biweekly!C92:C93) -> 196.5 | C47: 57.35133163 | E47: 196.5 | F47: 57.35133163
A48: 2003-11-01 | B48: =AVERAGE(biweekly!C94:C95) -> 172.5 | C48: 50.34658884 | E48: 172.5 | F48: 50.34658884
A49: 2003-12-01 | B49: =AVERAGE(biweekly!C96:C97) -> 150.5 | C49: 43.92557461 | E49: 150.5 | F49: 43.92557461
A50: 2004-01-01 | B50: =AVERAGE(biweekly!C98:C99) -> 181.5 | C50: 52.97336738 | E50: 181.5 | F50: 52.97336738
A51: 2004-02-01 | B51: =AVERAGE(biweekly!C100:C101) -> 213.5 | C51: 62.31302444 | E51: 213.5 | F51: 62.31302444
A52: 2004-03-01 | B52: =AVERAGE(biweekly!C102:C103) -> 210 | C52: 61.29149945 | E52: 210 | F52: 61.29149945
A53: 2004-04-01 | B53: =AVERAGE(biweekly!C104:C105) -> 253.5 | C53: 73.98759577 | E53: 253.5 | F53: 73.98759577
A54: 2004-05-01 | B54: =AVERAGE(biweekly!C106:C107) -> 251.5 | C54: 73.4038672 | E54: 251.5 | F54: 73.4038672
A55: 2004-06-01 | B55: =AVERAGE(biweekly!C108:C109) -> 201.5 | C55: 58.81065305 | E55: 201.5 | F55: 58.81065305
A56: 2004-07-01 | B56: =AVERAGE(biweekly!C110:C111) -> 223.5 | C56: 65.23166727 | E56: 223.5 | F56: 65.23166727
A57: 2004-08-01 | B57: =AVERAGE(biweekly!C112:C113) -> 251 | C57: 73.25793506 | E57: 251 | F57: 73.25793506
A58: 2004-09-01 | B58: =AVERAGE(biweekly!C114:C115) -> 243.5 | C58: 71.06895294 | E58: 243.5 | F58: 71.06895294
A59: 2004-10-01 | B59: =AVERAGE(biweekly!C116:C117) -> 237 | C59: 69.1718351 | E59: 237 | F59: 69.1718351
A60: 2004-11-01 | B60: =AVERAGE(biweekly!C118:C119) -> 180.5 | C60: 52.6815031 | E60: 180.5 | F60: 52.6815031
A61: 2004-12-01 | B61: =AVERAGE(biweekly!C120:C121) -> 160 | C61: 46.6982853 | E61: 160 | F61: 46.6982853
A62: 2005-01-01 | B62: =AVERAGE(biweekly!C122:C123) -> 192 | C62: 56.03794236 | E62: 192 | F62: 56.03794236
A63: 2005-02-01 | B63: =AVERAGE(biweekly!C124:C125) -> 215.5 | C63: 62.89675301 | E63: 215.5 | F63: 62.89675301
A64: 2005-03-01 | B64: =AVERAGE(biweekly!C126:C127) -> 206.5 | C64: 60.26997446 | E64: 206.5 | F64: 60.26997446
A65: 2005-04-01 | B65: =AVERAGE(biweekly!C128:C129) -> 229.5 | C65: 66.98285297 | E65: 229.5 | F65: 66.98285297
A66: 2005-05-01 | B66: =AVERAGE(biweekly!C130:C131) -> 268 | C66: 78.21962787 | E66: 268 | F66: 78.21962787
A67: 2005-06-01 | B67: =AVERAGE(biweekly!C132:C133) -> 243 | C67: 70.9230208 | E67: 243 | F67: 70.9230208
A68: 2005-07-01 | B68: =AVERAGE(biweekly!C134:C135) -> 245.5 | C68: 71.6526815 | E68: 245.5 | F68: 71.6526815
A69: 2005-08-01 | B69: =AVERAGE(biweekly!C136:C137) -> 277.5 | C69: 80.99233856 | E69: 277.5 | F69: 80.99233856
A70: 2005-09-01 | B70: =AVERAGE(biweekly!C138:C139) -> 227 | C70: 66.25319227 | E70: 227 | F70: 66.25319227
A71: 2005-10-01 | B71: =AVERAGE(biweekly!C140:C141) -> 234 | C71: 68.29624225 | E71: 234 | F71: 68.29624225
A72: 2005-11-01 | B72: =AVERAGE(biweekly!C142:C143) -> 198 | C72: 57.78912806 | E72: 198 | F72: 57.78912806
A73: 2005-12-01 | B73: =AVERAGE(biweekly!C144:C145) -> 162.5 | C73: =(B73/$D$2)*100 -> 47.42794601 | E73: 162.5 | F73: 47.42794601
A74: 2006-01-01 | B74: =AVERAGE(biweekly!C146:C147) -> 181 | C74: 52.82743524 | E74: 181 | F74: 52.82743524
A75: 2006-02-01 | B75: =AVERAGE(biweekly!C148:C149) -> 216 | C75: 63.04268515 | E75: 216 | F75: 63.04268515
A76: 2006-03-01 | B76: =AVERAGE(biweekly!C150:C151) -> 230.5 | C76: 67.27471726 | E76: 230.5 | F76: 67.27471726
A77: 2006-04-01 | B77: =AVERAGE(biweekly!C152:C153) -> 243.5 | C77: 71.06895294 | E77: 243.5 | F77: 71.06895294
A78: 2006-05-01 | B78: =AVERAGE(biweekly!C154:C155) -> 253.5 | C78: 73.98759577 | E78: 253.5 | F78: 73.98759577
A79: 2006-06-01 | B79: =AVERAGE(biweekly!C155:C156) -> 245 | C79: 71.50674936 | E79: 245 | F79: 71.50674936
A80: 2006-07-01 | B80: =AVERAGE(biweekly!C158:C159) -> 235 | C80: 68.58810653 | E80: 235 | F80: 68.58810653
A81: 2006-08-01 | B81: =AVERAGE(biweekly!C160:C161) -> 257 | C81: 75.00912076 | E81: 257 | F81: 75.00912076
A82: 2006-09-01 | B82: =AVERAGE(biweekly!C162:C163) -> 215 | C82: 62.75082087 | E82: 215 | F82: 62.75082087
A83: 2006-10-01 | B83: =AVERAGE(biweekly!C164:C165) -> 218 | C83: 63.62641372 | E83: 218 | F83: 63.62641372
A84: 2006-11-01 | B84: =AVERAGE(biweekly!C166:C167) -> 190 | C84: 55.45421379 | E84: 190 | F84: 55.45421379
A85: 2006-12-01 | B85: =AVERAGE(biweekly!C168:C169) -> 179 | C85: 52.24370668 | E85: 179 | F85: 52.24370668
A86: 2007-01-01 | B86: =AVERAGE(biweekly!C170:C171) -> 196 | C86: 57.20539949 | E86: 196 | F86: 57.20539949
A87: 2007-02-01 | B87: =AVERAGE(biweekly!C172:C173) -> 191 | C87: 55.74607807 | E87: 191 | F87: 55.74607807
A88: 2007-03-01 | B88: =AVERAGE(biweekly!C174:C175) -> 226 | C88: 65.96132798 | E88: 226 | F88: 65.96132798
A89: 2007-04-01 | B89: =AVERAGE(biweekly!C176:C177) -> 240 | C89: 70.04742795 | E89: 240 | F89: 70.04742795
A90: 2007-05-01 | B90: =AVERAGE(biweekly!C178:C179) -> 221.5 | C90: 64.64793871 | E90: 221.5 | F90: 64.64793871
A91: 2007-06-01 | B91: =AVERAGE(biweekly!C180:C181) -> 227 | C91: 66.25319227 | E91: 227 | F91: 66.25319227
A92: 2007-07-01 | B92: =AVERAGE(biweekly!C182:C183) -> 231 | C92: 67.4206494 | E92: 231 | F92: 67.4206494
A93: 2007-08-01 | B93: =AVERAGE(biweekly!C184:C185) -> 249.5 | C93: 72.82013864 | E93: 249.5 | F93: 72.82013864
A94: 2007-09-01 | B94: =AVERAGE(biweekly!C186:C187) -> 246 | C94: 71.79861364 | E94: 246 | F94: 71.79861364
A95: 2007-10-01 | B95: =AVERAGE(biweekly!C188:C189) -> 240.5 | C95: 70.19336009 | E95: 240.5 | F95: 70.19336009
A96: 2007-11-01 | B96: =AVERAGE(biweekly!C190:C191) -> 178 | C96: 51.95184239 | E96: 178 | F96: 51.95184239
A97: 2007-12-01 | B97: =AVERAGE(biweekly!C192:C193) -> 177 | C97: 51.65997811 | E97: 177 | F97: 51.65997811
A98: 2008-01-01 | B98: =AVERAGE(biweekly!C194:C195) -> 181 | C98: 52.82743524 | E98: 181 | F98: 52.82743524
A99: 2008-02-01 | B99: =AVERAGE(biweekly!C196:C197) -> 171 | C99: 49.90879241 | E99: 171 | F99: 49.90879241
A100: 2008-03-01 | B100: =AVERAGE(biweekly!C198:C199) -> 194.5 | C100: 56.76760306 | E100: 194.5 | F100: 56.76760306
A101: 2008-04-01 | B101: =AVERAGE(biweekly!C200:C201) -> 225.5 | C101: 65.81539584 | E101: 225.5 | F101: 65.81539584
A102: 2008-05-01 | B102: =AVERAGE(biweekly!C202:C203) -> 209 | C102: 60.99963517 | E102: 209 | F102: 60.99963517
A103: 2008-06-01 | B103: =AVERAGE(biweekly!C204:C205) -> 197.5 | C103: 57.64319591 | E103: 197.5 | F103: 57.64319591
A104: 2008-07-01 | B104: =AVERAGE(biweekly!C206:C207) -> 172 | C104: 50.20065669 | E104: 172 | F104: 50.20065669
A105: 2008-08-01 | B105: =AVERAGE(biweekly!C208:C209) -> 164 | C105: 47.86574243 | E105: 164 | F105: 47.86574243
A106: 2008-09-01 | B106: =AVERAGE(biweekly!C210:C211) -> 177.5 | C106: =(B106/$D$2)*100 -> 51.80591025 | E106: 177.5 | F106: 51.80591025
A107: 2008-10-01 | B107: =AVERAGE(biweekly!C212:C213) -> 149 | C107: 43.48777818 | E107: 149 | F107: 43.48777818
A108: 2008-11-01 | B108: =AVERAGE(biweekly!C214:C215) -> 112 | C108: 32.68879971 | E108: 112 | F108: 32.68879971
A109: 2008-12-01 | B109: =AVERAGE(biweekly!C216:C217) -> 96.5 | C109: 28.16490332 | E109: 96.5 | F109: 28.16490332
A110: 2009-01-01 | B110: =AVERAGE(biweekly!C218:C219) -> 89.5 | C110: 26.12185334 | E110: 89.5 | F110: 26.12185334
A111: 2009-02-01 | B111: =AVERAGE(biweekly!C220:C221) -> 85.5 | C111: 24.95439621 | E111: 85.5 | F111: 24.95439621
A112: 2009-03-01 | B112: =AVERAGE(biweekly!C222:C223) -> 86.5 | C112: 25.24626049 | E112: 86.5 | F112: 25.24626049
A113: 2009-04-01 | B113: =AVERAGE(biweekly!C224:C225) -> 83.5 | C113: 24.37066764 | E113: 83.5 | F113: 24.37066764
A114: 2009-05-01 | B114: =AVERAGE(biweekly!C226:C227) -> 81.5 | C114: 23.78693907 | E114: 81.5 | F114: 23.78693907
A115: 2009-06-01 | B115: =AVERAGE(biweekly!C228:C229) -> 85 | C115: 24.80846406 | E115: 85 | F115: 24.80846406
A116: 2009-07-01 | B116: =AVERAGE(biweekly!C230:C231) -> 84.5 | C116: 24.66253192 | E116: 84.5 | F116: 24.66253192
A117: 2009-08-01 | B117: =AVERAGE(biweekly!C232:C233) -> 107 | C117: 31.22947829 | E117: 107 | F117: 31.22947829
A118: 2009-09-01 | B118: =AVERAGE(biweekly!C234:C235) -> 98 | C118: 28.60269974 | E118: 98 | F118: 28.60269974
A119: 2009-10-01 | B119: =AVERAGE(biweekly!C236:C237) -> 83.5 | C119: 24.37066764 | E119: 83.5 | F119: 24.37066764
A120: 2009-11-01 | B120: =AVERAGE(biweekly!C238:C239) -> 62 | C120: 18.09558555 | E120: 62 | F120: 18.09558555
A121: 2009-12-01 | B121: =AVERAGE(biweekly!C240:C241) -> 59.5 | C121: 17.36592484 | E121: 59.5 | F121: 17.36592484
A122: 2010-01-01 | B122: =AVERAGE(biweekly!C242:C243) -> 73.5 | C122: 21.45202481 | E122: 73.5 | F122: 21.45202481
A123: 2010-02-01 | B123: =AVERAGE(biweekly!C244:C245) -> 77 | C123: 22.4735498 | E123: 77 | F123: 22.4735498
A124: 2010-03-01 | B124: =AVERAGE(biweekly!C246:C247) -> 81 | C124: 23.64100693 | E124: 81 | F124: 23.64100693
A125: 2010-04-01 | B125: =AVERAGE(biweekly!C248:C249) -> 93 | C125: 27.14337833 | E125: 93 | F125: 27.14337833
A126: 2010-05-01 | B126: =AVERAGE(biweekly!C250:C251) -> 83 | C126: 24.2247355 | E126: 83 | F126: 24.2247355
A127: 2010-06-01 | B127: =AVERAGE(biweekly!C252:C253) -> 92 | C127: 26.85151405 | E127: 92 | F127: 26.85151405
A128: 2010-07-01 | B128: =AVERAGE(biweekly!C254:C255) -> 78.5 | C128: 22.91134622 | E128: 78.5 | F128: 22.91134622
A129: 2010-08-01 | B129: =AVERAGE(biweekly!C256:C257) -> 109 | C129: 31.81320686 | E129: 109 | F129: 31.81320686
A130: 2010-09-01 | B130: =AVERAGE(biweekly!C258:C259) -> 111.5 | C130: 32.54286757 | E130: 111.5 | F130: 32.54286757
A131: 2010-10-01 | B131: =AVERAGE(biweekly!C260:C261) -> 96.5 | C131: 28.16490332 | E131: 96.5 | F131: 28.16490332
A132: 2010-11-01 | B132: =AVERAGE(biweekly!C262:C263) -> 70 | C132: 20.43049982 | E132: 70 | F132: 20.43049982
A133: 2010-12-01 | B133: =AVERAGE(biweekly!C264:C265) -> 71 | C133: 20.7223641 | E133: 71 | F133: 20.7223641
A134: 2011-01-01 | B134: =AVERAGE(biweekly!C266:C267) -> 78 | C134: 22.76541408 | E134: 78 | F134: 22.76541408
A135: 2011-02-01 | B135: =AVERAGE(biweekly!C268:C269) -> 80 | C135: 23.34914265 | E135: 80 | F135: 23.34914265
A136: 2011-03-01 | B136: =AVERAGE(biweekly!C270:C271) -> 78 | C136: 22.76541408 | E136: 78 | F136: 22.76541408
A137: 2011-04-01 | B137: =AVERAGE(biweekly!C272:C273) -> 93.5 | C137: 27.28931047 | E137: 93.5 | F137: 27.28931047
A138: 2011-05-01 | B138: =AVERAGE(biweekly!C274:C275) -> 103.5 | C138: 30.2079533 | E138: 103.5 | F138: 30.2079533
A139: 2011-06-01 | B139: =AVERAGE(biweekly!C276:C277) -> 92 | C139: 26.85151405 | E139: 92 | F139: 26.85151405
A140: 2011-07-01 | B140: =AVERAGE(biweekly!C278:C279) -> 95 | C140: 27.7271069 | E140: 95 | F140: 27.7271069
A141: 2011-08-01 | B141: =AVERAGE(biweekly!C280:C281) -> 106 | C141: 30.93761401 | E141: 106 | F141: 30.93761401
A142: 2011-09-01 | B142: =AVERAGE(biweekly!C282:C283) -> 95 | C142: 27.7271069 | E142: 95 | F142: 27.7271069
A143: 2011-10-01 | B143: =AVERAGE(biweekly!C284:C285) -> 104.5 | C143: 30.49981758 | E143: 104.5 | F143: 30.49981758
A144: 2011-11-01 | B144: =AVERAGE(biweekly!C286:C287) -> 88 | C144: 25.68405691 | E144: 88 | F144: 25.68405691
A145: 2011-12-01 | B145: =AVERAGE(biweekly!C288:C289) -> 67 | C145: 19.55490697 | E145: 67 | F145: 19.55490697
A146: 2012-01-01 | B146: =AVERAGE(biweekly!C290:C291) -> 86 | C146: 25.10032835 | E146: 86 | F146: 25.10032835
A147: 2012-02-01 | B147: =AVERAGE(biweekly!C292:C293) -> 88 | C147: 25.68405691 | E147: 88 | F147: 25.68405691
A148: 2012-03-01 | B148: =AVERAGE(biweekly!C294:C295) -> 103.5 | C148: 30.2079533 | E148: 103.5 | F148: 30.2079533
A149: 2012-04-01 | B149: =AVERAGE(biweekly!C296:C297) -> 116 | C149: 33.85625684 | E149: 116 | F149: 33.85625684
A150: 2012-05-01 | B150: =AVERAGE(biweekly!C298:C299) -> 103 | C150: 30.06202116 | E150: 103 | F150: 30.06202116
A151: 2012-06-01 | B151: =AVERAGE(biweekly!C300:C301) -> 85 | C151: 24.80846406 | E151: 85 | F151: 24.80846406
A152: 2012-07-01 | B152: =AVERAGE(biweekly!C302:C303) -> 97 | C152: 28.31083546 | E152: 97 | F152: 28.31083546
A153: 2012-08-01 | B153: =AVERAGE(biweekly!C304:C305) -> 94 | C153: 27.43524261 | E153: 94 | F153: 27.43524261
A154: 2012-09-01 | B154: =AVERAGE(biweekly!C306:C307) -> 96 | C154: 28.01897118 | E154: 96 | F154: 28.01897118
A155: 2012-10-01 | B155: =AVERAGE(biweekly!C308:C309) -> 89.5 | C155: 26.12185334 | E155: 89.5 | F155: 26.12185334
A156: 2012-11-01 | B156: =AVERAGE(biweekly!C310:C311) -> 62.5 | C156: 18.24151769 | E156: 62.5 | F156: 18.24151769
A157: 2012-12-01 | B157: =AVERAGE(biweekly!C312:C313) -> 63.5 | C157: 18.53338198 | E157: 63.5 | F157: 18.53338198
A158: 2013-01-01 | B158: =AVERAGE(biweekly!C314:C315) -> 63.5 | C158: 18.53338198 | E158: 63.5 | F158: 18.53338198
A159: 2013-02-01 | B159: =AVERAGE(biweekly!C316:C317) -> 68.5 | C159: 19.99270339 | E159: 68.5 | F159: 19.99270339
A160: 2013-03-01 | B160: =AVERAGE(biweekly!C318:C319) -> 87.5 | C160: 25.53812477 | E160: 87.5 | F160: 25.53812477
A161: 2013-04-01 | B161: =AVERAGE(biweekly!C319:C320) -> 90.5 | C161: 26.41371762 | E161: 90.5 | F161: 26.41371762
A162: 2013-05-01 | B162: =AVERAGE(biweekly!C322:C323) -> 92 | C162: 26.85151405 | E162: 92 | F162: 26.85151405
A163: 2013-06-01 | B163: =AVERAGE(biweekly!C324:C325) -> 85 | C163: 24.80846406 | E163: 85 | F163: 24.80846406
A164: 2013-07-01 | B164: =AVERAGE(biweekly!C326:C327) -> 82 | C164: 23.93287121 | E164: 82 | F164: 23.93287121
A165: 2013-08-01 | B165: =AVERAGE(biweekly!C328:C329) -> 101 | C165: 29.47829259 | E165: 101 | F165: 29.47829259
A166: 2013-09-01 | B166: =AVERAGE(biweekly!C330:C331) -> 81 | C166: 23.64100693 | E166: 81 | F166: 23.64100693
A167: 2013-10-01 | B167: =AVERAGE(biweekly!C332:C333) -> 87 | C167: 25.39219263 | E167: 87 | F167: 25.39219263
A168: 2013-11-01 | B168: =AVERAGE(biweekly!C334:C335) -> 74.5 | C168: 21.74388909 | E168: 74.5 | F168: 21.74388909
A169: 2013-12-01 | B169: =AVERAGE(biweekly!C336:C337) -> 55 | C169: 16.05253557 | E169: 55 | F169: 16.05253557
A170: 2014-01-01 | B170: =AVERAGE(biweekly!C338:C339) -> 67.5 | C170: 19.70083911 | E170: 67.5 | F170: 19.70083911
A171: 2014-02-01 | B171: =AVERAGE(biweekly!C340:C341) -> 65 | C171: =(B171/$D$2)*100 -> 18.9711784 | E171: 65 | F171: 18.9711784
A172: 2014-03-01 | B172: =AVERAGE(biweekly!C342:C343) -> 84 | C172: 24.51659978 | E172: 84 | F172: 24.51659978
A173: 2014-04-01 | B173: =AVERAGE(biweekly!C344:C345) -> 89 | C173: 25.9759212 | E173: 89 | F173: 25.9759212
A174: 2014-05-01 | B174: =AVERAGE(biweekly!C346:C347) -> 75.5 | C174: 22.03575337 | E174: 75.5 | F174: 22.03575337
A175: 2014-06-01 | B175: =AVERAGE(biweekly!C348:C349) -> 84.5 | C175: 24.66253192 | E175: 84.5 | F175: 24.66253192
A176: 2014-07-01 | B176: =AVERAGE(biweekly!C350:C351) -> 73.5 | C176: 21.45202481 | E176: 73.5 | F176: 21.45202481
A177: 2014-08-01 | B177: =AVERAGE(biweekly!C352:C353) -> 81.5 | C177: 23.78693907 | E177: 81.5 | F177: 23.78693907
A178: 2014-09-01 | B178: =AVERAGE(biweekly!C354:C355) -> 90.5 | C178: 26.41371762 | E178: 90.5 | F178: 26.41371762
A179: 2014-10-01 | B179: =AVERAGE(biweekly!C356:C357) -> 81 | C179: 23.64100693 | E179: 81 | F179: 23.64100693
A180: 2014-11-01 | B180: =AVERAGE(biweekly!C358:C359) -> 68 | C180: 19.84677125 | E180: 68 | F180: 19.84677125
A181: 2014-12-01 | B181: =AVERAGE(biweekly!C360:C361) -> 48.5 | C181: 14.15541773 | E181: 48.5 | F181: 14.15541773
A182: 2015-01-01 | B182: =AVERAGE(biweekly!C362:C363) -> 60 | C182: 17.51185699 | E182: 60 | F182: 17.51185699
A183: 2015-02-01 | B183: =AVERAGE(biweekly!C364:C365) -> 73 | C183: 21.30609267 | E183: 73 | F183: 21.30609267
A184: 2015-03-01 | B184: =AVERAGE(biweekly!C366:C367) -> 79 | C184: 23.05727837 | E184: 79 | F184: 23.05727837
A185: 2015-04-01 | B185: =AVERAGE(biweekly!C368:C369) -> 80 | C185: 23.34914265 | E185: 80 | F185: 23.34914265
A186: 2015-05-01 | B186: =AVERAGE(biweekly!C370:C371) -> 64 | C186: 18.67931412 | E186: 64 | F186: 18.67931412
A187: 2015-06-01 | B187: =AVERAGE(biweekly!C372:C373) -> 58.5 | C187: 17.07406056 | E187: 58.5 | F187: 17.07406056
A188: 2015-07-01 | B188: =AVERAGE(biweekly!C374:C375) -> 54.5 | C188: =(B188/$D$2)*100 -> 15.90660343 | E188: 54.5 | F188: 15.90660343
A189: 2015-08-01 | B189: 62.5 | C189: =(B189/$D$2)*100 -> 18.24151769
A190: 2015-09-01 | B190: 60 | C190: 17.51185699
A191: 2015-10-01 | B191: 47.5 | C191: 13.86355345
A192: 2015-11-01 | B192: 46 | C192: 13.42575702
A193: 2015-12-01 | B193: 36.5 | C193: 10.65304633
A194: 2016-01-01 | B194: 40.5 | C194: 11.82050347
A195: 2016-02-01 | B195: 45.5 | C195: 13.27982488
A196: 2016-03-01 | B196: 42.5 | C196: 12.40423203
A197: 2016-04-01 | B197: 37.5 | C197: 10.94491062
A198: 2016-05-01 | B198: 34.5 | C198: 10.06931777
A199: 2016-06-01 | B199: 36.5 | C199: 10.65304633
A200: 2016-07-01 | B200: 53 | C200: 15.468807
... 5 more rows

Sheet biweekly
A1: month | B1: sunday | C1: help wanted | D1: year
A2: jan | B2: 1st | C2: 267 | D2: 2000
B3: last | C3: 342
A4: feb | B4: 1st | C4: 355
B5: last | C5: 291
A6: mar | B6: 1st | C6: 329
B7: last | C7: 345
A8: apr | B8: 1st | C8: 349
B9: last | C9: 414
A10: may | B10: 1st | C10: 332
B11: last | C11: 377
A12: jun | B12: 1st | C12: 366
B13: last | C13: 357
A14: jul | B14: 1st | C14: 298
B15: last | C15: 393
A16: aug | B16: 1st | C16: 418
B17: last | C17: 405
A18: sep | B18: 1st | C18: 404
B19: last | C19: 387
A20: oct | B20: 1st | C20: 341
B21: last | C21: 366
A22: vov | B22: 1st | C22: 340
B23: last | C23: 258
A24: dec | B24: 1st | C24: 283
B25: last | C25: 206
A26: jan | B26: 1st | C26: 320 | D26: 2001
B27: last | C27: 277
A28: feb | B28: 1st | C28: 291
B29: last | C29: 269
A30: mar | B30: 1st | C30: 256
B31: last | C31: 294
A32: apr | B32: 1st | C32: 227
B33: last | C33: 286
A34: may | B34: 1st | C34: 259
B35: last | C35: 281
A36: jun | B36: 1st | C36: 294
B37: last | C37: 267
A38: jul | B38: 1st | C38: 234
B39: last | C39: 269
A40: aug | B40: 1st | C40: 308
B41: last | C41: 336
A42: sep | B42: 1st | C42: 287
B43: last | C43: 279
A44: oct | B44: 1st | C44: 254
B45: last | C45: 243
A46: vov | B46: 1st | C46: 239
B47: last | C47: 179
A48: dec | B48: 1st | C48: 214
B49: last | C49: 154
A50: jan | B50: 1st | C50: 207 | D50: 2002
B51: last | C51: 172
A52: feb | B52: 1st | C52: 183
B53: last | C53: 198
A54: mar | B54: 1st | C54: 230
B55: last | C55: 210
A56: apr | B56: 1st | C56: 215
B57: last | C57: 240
A58: may | B58: 1st | C58: 232
B59: last | C59: 210
A60: jun | B60: 1st | C60: 211
B61: last | C61: 205
A62: jul | B62: 1st | C62: 204
B63: last | C63: 268
A64: aug | B64: 1st | C64: 249
B65: last | C65: 264
A66: sep | B66: 1st | C66: 244
B67: last | C67: 217
A68: oct | B68: 1st | C68: 218
B69: last | C69: 227
A70: vov | B70: 1st | C70: 211
B71: last | C71: 196
A72: dec | B72: 1st | C72: 152
B73: last | C73: 124
A74: jan | B74: 1st | C74: 140 | D74: 2003
B75: last | C75: 196
A76: feb | B76: 1st | C76: 177
B77: last | C77: 101
A78: mar | B78: 1st | C78: 195
B79: last | C79: 225
A80: apr | B80: 1st | C80: 227
B81: last | C81: 221
A82: may | B82: 1st | C82: 236
B83: last | C83: 221
A84: jun | B84: 1st | C84: 237
B85: last | C85: 216
A86: jul | B86: 1st | C86: 154
B87: last | C87: 226
A88: aug | B88: 1st | C88: 208
B89: last | C89: 220
A90: sep | B90: 1st | C90: 229
B91: last | C91: 193
A92: oct | B92: 1st | C92: 199
B93: last | C93: 194
A94: vov | B94: 1st | C94: 197
B95: last | C95: 148
A96: dec | B96: 1st | C96: 182
B97: last | C97: 119
A98: jan | B98: 1st | C98: 148 | D98: 2004
B99: last | C99: 215
A100: feb | B100: 1st | C100: 198
B101: last | C101: 229
A102: mar | B102: 1st | C102: 209
B103: last | C103: 211
A104: apr | B104: 1st | C104: 234
B105: last | C105: 273
A106: may | B106: 1st | C106: 303
B107: last | C107: 200
A108: jun | B108: 1st | C108: 210
B109: last | C109: 193
A110: jul | B110: 1st | C110: 171
B111: last | C111: 276
A112: aug | B112: 1st | C112: 254
B113: last | C113: 248
A114: sep | B114: 1st | C114: 236
B115: last | C115: 251
A116: oct | B116: 1st | C116: 244
B117: last | C117: 230
A118: nov | B118: 1st | C118: 207
B119: last | C119: 154
A120: dec | B120: 1st | C120: 186
B121: last | C121: 134
A122: jan | B122: 1st | C122: 187 | D122: 2005
B123: last | C123: 197
A124: feb | B124: 1st | C124: 226
B125: last | C125: 205
A126: mar | B126: 1st | C126: 214
B127: last | C127: 199
A128: apr | B128: 1st | C128: 221
B129: last | C129: 238
A130: may | B130: 1st | C130: 281
B131: last | C131: 255
A132: jun | B132: 1st | C132: 253
B133: last | C133: 233
A134: jul | B134: 1st | C134: 208
B135: last | C135: 283
A136: aug | B136: 1st | C136: 290
B137: last | C137: 265
A138: sep | B138: 1st | C138: 221
B139: last | C139: 233
A140: oct | B140: 1st | C140: 243
B141: last | C141: 225
A142: nov | B142: 1st | C142: 227
B143: last | C143: 169
A144: dec | B144: 1st | C144: 207
B145: last | C145: 118
A146: jan | B146: 1st | C146: 164 | D146: 2006
B147: last | C147: 198
A148: feb | B148: 1st | C148: 211
B149: last | C149: 221
A150: mar | B150: 1st | C150: 236
B151: last | C151: 225
A152: apr | B152: 1st | C152: 241
B153: last | C153: 246
A154: may | B154: 1st | C154: 264
B155: last | C155: 243
A156: jun | B156: 1st | C156: 247
B157: last | C157: 234
A158: jul | B158: 1st | C158: 212
B159: last | C159: 258
A160: aug | B160: 1st | C160: 253
B161: last | C161: 261
A162: sep | B162: 1st | C162: 216
B163: last | C163: 214
A164: oct | B164: 1st | C164: 201
B165: last | C165: 235
A166: nov | B166: 1st | C166: 214
B167: last | C167: 166
A168: dec | B168: 1st | C168: 203
B169: last | C169: 155
A170: jan | B170: 1st | C170: 201 | D170: 2007
B171: last | C171: 191
A172: feb | B172: 1st | C172: 195
B173: last | C173: 187
A174: mar | B174: 1st | C174: 211
B175: last | C175: 241
A176: apr | B176: 1st | C176: 231
B177: last | C177: 249
A178: may | B178: 1st | C178: 232
B179: last | C179: 211
A180: jun | B180: 1st | C180: 228
B181: last | C181: 226
A182: jul | B182: 1st | C182: 224
B183: last | C183: 238
A184: aug | B184: 1st | C184: 234
B185: last | C185: 265
A186: sep | B186: 1st | C186: 224
B187: last | C187: 268
A188: oct | B188: 1st | C188: 250
B189: last | C189: 231
A190: nov | B190: 1st | C190: 205
B191: last | C191: 151
A192: dec | B192: 1st | C192: 197
B193: last | C193: 157
A194: jan | B194: 1st | C194: 199 | D194: 2008
B195: last | C195: 163
A196: feb | B196: 1st | C196: 141
B197: last | C197: 201
A198: mar | B198: 1st | C198: 179
B199: last | C199: 210
A200: apr | B200: 1st | C200: 216
... 209 more rows

Sheet data through Sept 2016
B1: 2000
B2: Jan. | C2: Feb. | D2: March | E2: April | F2: May | G2: June | H2: July | I2: Aug. | J2: Sept. | K2: Oct. | L2: Nov. | M2: Dec.
A3: 1st | B3: 267 | C3: 355 | D3: 329 | E3: 349 | F3: 332 | G3: 366 | H3: 298 | I3: 418 | J3: 404 | K3: 341 | L3: 340 | M3: 283
A4: last | B4: 342 | C4: 291 | D4: 345 | E4: 414 | F4: 377 | G4: 357 | H4: 393 | I4: 405 | J4: 387 | K4: 366 | L4: 258 | M4: 206
B6: 2001
B7: Jan. | C7: Feb. | D7: March | E7: April | F7: May | G7: June | H7: July | I7: Aug. | J7: Sept. | K7: Oct. | L7: Nov. | M7: Dec.
A8: 1st | B8: 320 | C8: 291 | D8: 256 | E8: 227 | F8: 259 | G8: 294 | H8: 234 | I8: 308 | J8: 287 | K8: 254 | L8: 239 | M8: 214
A9: last | B9: 277 | C9: 269 | D9: 294 | E9: 286 | F9: 281 | G9: 267 | H9: 269 | I9: 336 | J9: 279 | K9: 243 | L9: 179 | M9: 154
B11: 2002
B12: Jan. | C12: Feb. | D12: March | E12: April | F12: May | G12: June | H12: July | I12: Aug. | J12: Sept. | K12: Oct. | L12: Nov. | M12: Dec.
A13: 1st | B13: 207 | C13: 183 | D13: 230 | E13: 215 | F13: 232 | G13: 211 | H13: 204 | I13: 249 | J13: 244 | K13: 218 | L13: 211 | M13: 152
A14: last | B14: 172 | C14: 198 | D14: 210 | E14: 240 | F14: 210 | G14: 205 | H14: 268 | I14: 264 | J14: 217 | K14: 227 | L14: 196 | M14: 124
B16: 2003
B17: Jan. | C17: Feb. | D17: March | E17: April | F17: May | G17: June | H17: July | I17: Aug. | J17: Sept. | K17: Oct. | L17: Nov. | M17: Dec.
A18: 1st | B18: 140 | C18: 177 | D18: 195 | E18: 227 | F18: 236 | G18: 237 | H18: 154 | I18: 208 | J18: 229 | K18: 199 | L18: 197 | M18: 182
A19: last | B19: 196 | C19: 101 | D19: 225 | E19: 221 | F19: 221 | G19: 216 | H19: 226 | I19: 220 | J19: 193 | K19: 194 | L19: 148 | M19: 119
B21: 2004
B22: Jan. | C22: Feb. | D22: March | E22: April | F22: May | G22: June | H22: July | I22: Aug. | J22: Sept. | K22: Oct. | L22: Nov. | M22: Dec.
A23: 1st | B23: 148 | C23: 198 | D23: 209 | E23: 234 | F23: 303 | G23: 210 | H23: 171 | I23: 254 | J23: 236 | K23: 244 | L23: 207 | M23: 186
A24: last | B24: 215 | C24: 229 | D24: 211 | E24: 273 | F24: 200 | G24: 193 | H24: 276 | I24: 248 | J24: 251 | K24: 230 | L24: 154 | M24: 134
B26: 2005
B27: Jan. | C27: Feb. | D27: March | E27: April | F27: May | G27: June | H27: July | I27: Aug. | J27: Sept. | K27: Oct. | L27: Nov. | M27: Dec.
A28: 1st | B28: 187 | C28: 226 | D28: 214 | E28: 221 | F28: 281 | G28: 253 | H28: 208 | I28: 290 | J28: 221 | K28: 243 | L28: 227 | M28: 207
A29: last | B29: 197 | C29: 205 | D29: 199 | E29: 238 | F29: 255 | G29: 233 | H29: 283 | I29: 265 | J29: 233 | K29: 225 | L29: 169 | M29: 118
B31: 2006
B32: Jan. | C32: Feb. | D32: March | E32: April | F32: May | G32: June | H32: July | I32: Aug. | J32: Sept. | K32: Oct. | L32: Nov. | M32: Dec.
A33: 1st | B33: 164 | C33: 211 | D33: 236 | E33: 241 | F33: 264 | G33: 247 | H33: 212 | I33: 253 | J33: 216 | K33: 201 | L33: 214 | M33: 203
A34: last | B34: 198 | C34: 221 | D34: 225 | E34: 246 | F34: 243 | G34: 234 | H34: 258 | I34: 261 | J34: 214 | K34: 235 | L34: 166 | M34: 155
B36: 2007
B37: Jan. | C37: Feb. | D37: March | E37: April | F37: May | G37: June | H37: July | I37: Aug. | J37: Sept. | K37: Oct. | L37: Nov. | M37: Dec.
A38: 1st | B38: 201 | C38: 195 | D38: 211 | E38: 231 | F38: 232 | G38: 228 | H38: 224 | I38: 234 | J38: 224 | K38: 250 | L38: 205 | M38: 197
A39: last | B39: 191 | C39: 187 | D39: 241 | E39: 249 | F39: 211 | G39: 226 | H39: 238 | I39: 265 | J39: 268 | K39: 231 | L39: 151 | M39: 157
B41: 2008
B42: Jan. | C42: Feb. | D42: March | E42: April | F42: May | G42: June | H42: July | I42: Aug. | J42: Sept. | K42: Oct. | L42: Nov. | M42: Dec.
A43: 1st | B43: 199 | C43: 141 | D43: 179 | E43: 216 | F43: 211 | G43: 208 | H43: 152 | I43: 174 | J43: 183 | K43: 161 | L43: 123 | M43: 119
A44: last | B44: 163 | C44: 201 | D44: 210 | E44: 235 | F44: 207 | G44: 187 | H44: 192 | I44: 154 | J44: 172 | K44: 137 | L44: 101 | M44: 74
B46: 2009
B47: Jan. | C47: Feb. | D47: March | E47: April | F47: May | G47: June | H47: July | I47: Aug. | J47: Sept. | K47: Oct. | L47: Nov. | M47: Dec.
A48: 1st | B48: 92 | C48: 98 | D48: 78 | E48: 87 | F48: 80 | G48: 78 | H48: 68 | I48: 87 | J48: 100 | K48: 81 | L48: 71 | M48: 72
A49: last | B49: 87 | C49: 73 | D49: 95 | E49: 80 | F49: 83 | G49: 92 | H49: 101 | I49: 127 | J49: 96 | K49: 86 | L49: 53 | M49: 47
B51: 2010
B52: Jan. | C52: Feb. | D52: March | E52: April | F52: May | G52: June | H52: July | I52: Aug. | J52: Sept. | K52: Oct. | L52: Nov. | M52: Dec.
A53: 1st | B53: 55 | C53: 73 | D53: 75 | E53: 85 | F53: 94 | G53: 81 | H53: 72 | I53: 107 | J53: 112 | K53: 92 | L53: 82 | M53: 80
A54: last | B54: 92 | C54: 81 | D54: 87 | E54: 101 | F54: 72 | G54: 103 | H54: 85 | I54: 111 | J54: 111 | K54: 101 | L54: 58 | M54: 62
B56: 2011
B57: Jan. | C57: Feb. | D57: March | E57: April | F57: May | G57: June | H57: July | I57: Aug. | J57: Sept. | K57: Oct. | L57: Nov. | M57: Dec.
A58: 1st | B58: 72 | C58: 82 | D58: 87 | E58: 90 | F58: 110 | G58: 84 | H58: 95 | I58: 102 | J58: 95 | K58: 104 | L58: 107 | M58: 72
A59: last | B59: 84 | C59: 78 | D59: 69 | E59: 97 | F59: 97 | G59: 100 | H59: 95 | I59: 110 | J59: 95 | K59: 105 | L59: 69 | M59: 62
B61: 2012
B62: Jan. | C62: Feb. | D62: March | E62: April | F62: May | G62: June | H62: July | I62: Aug. | J62: Sept. | K62: Oct. | L62: Nov. | M62: Dec.
A63: 1st | B63: 75 | C63: 86 | D63: 92 | E63: 118 | F63: 124 | G63: 87 | H63: 89 | I63: 94 | J63: 91 | K63: 95 | L63: 79 | M63: 75
A64: last | B64: 97 | C64: 90 | D64: 115 | E64: 114 | F64: 82 | G64: 83 | H64: 105 | I64: 94 | J64: 101 | K64: 84 | L64: 46 | M64: 52
B66: 2013
B67: Jan. | C67: Feb. | D67: March | E67: April | F67: May | G67: June | H67: July | I67: Aug. | J67: Sept. | K67: Oct. | L67: Nov. | M67: Dec.
A68: 1st | B68: 60 | C68: 56 | D68: 94 | E68: 100 | F68: 99 | G68: 76 | H68: 79 | I68: 109 | J68: 68 | K68: 82 | L68: 71 | M68: 59
A69: last | B69: 67 | C69: 81 | D69: 81 | E69: 82 | F69: 85 | G69: 94 | H69: 85 | I69: 93 | J69: 94 | K69: 92 | L69: 78 | M69: 51
B71: 2014
B72: Jan. | C72: Feb. | D72: March | E72: April | F72: May | G72: June | H72: July | I72: Aug. | J72: Sept. | K72: Oct. | L72: Nov. | M72: Dec.
A73: 1st | B73: 67 | C73: 59 | D73: 85 | E73: 80 | F73: 78 | G73: 79 | H73: 67 | I73: 82 | J73: 91 | K73: 85 | L73: 77 | M73: 54
A74: last | B74: 68 | C74: 71 | D74: 83 | E74: 98 | F74: 73 | G74: 90 | H74: 80 | I74: 81 | J74: 90 | K74: 77 | L74: 59 | M74: 43
B76: 2015
B77: Jan. | C77: Feb. | D77: March | E77: April | F77: May | G77: June | H77: July | I77: Aug. | J77: Sept. | K77: Oct. | L77: Nov. | M77: Dec.
A78: 1st | B78: 56 | C78: 63 | D78: 80 | E78: 70 | F78: 70 | G78: 56 | H78: 56 | I78: 63 | J78: 63 | K78: 46 | L78: 51 | M78: 46
A79: last | B79: 64 | C79: 83 | D79: 78 | E79: 90 | F79: 58 | G79: 61 | H79: 53 | I79: 62 | J79: 57 | K79: 49 | L79: 41 | M79: 27
B81: 2016
B82: Jan. | C82: Feb. | D82: March | E82: April | F82: May | G82: June | H82: July | I82: Aug. | J82: Sept. | K82: Oct. | L82: Nov. | M82: Dec.
A83: 1st | B83: 30 | C83: 42 | D83: 44 | E83: 34 | F83: 38 | G83: 34 | H83: 52 | I83: 41 | J83: 33
A84: last | B84: 51 | C84: 49 | D84: 39 | E84: 41 | F84: 31 | G84: 39 | H84: 54 | I84: 39 | J84: 40

Sheet mnth-mnth
A1: lt_hwa_01=100 | B1: jan | C1: feb | D1: mar | E1: apr | F1: may | G1: jun | H1: jul | I1: aug | J1: sep | K1: oct | L1: nov | M1: dec | N1: ytd_avg
A2: 2003 | B2: 49 | C2: 40.6 | D2: 61.3 | E2: 65.4 | F2: 66.7 | G2: 66.1 | H2: 55.5 | I2: 62.5 | J2: 61.6 | K2: 57.4 | L2: 50.3 | M2: 43.9 | N2: =AVERAGE(B2:M2) -> 56.69166667 | O2: =AVERAGE(B2:M2) -> 56.69166667
A3: 2004 | B3: 53 | C3: 62.3 | D3: 61.3 | E3: 74 | F3: 73.4 | G3: 58.8 | H3: 65.2 | I3: 73.3 | J3: 71.1 | K3: 69.2 | L3: 52.7 | M3: 46.7 | N3: 63.41666667 | O3: 63.41666667
A4: 2005 | B4: 56 | C4: 62.9 | D4: 60.3 | E4: 67 | F4: 78.2 | G4: 70.9 | H4: 71.7 | I4: 81 | J4: 66.3 | K4: 68.3 | L4: 57.8 | M4: 47.4 | N4: 65.65 | O4: 65.65
A5: 2006 | B5: 52.8 | C5: 63 | D5: 67.3 | E5: 71.1 | F5: 74 | G5: 71.5 | H5: 68.6 | I5: 75 | J5: 62.8 | K5: 63.6 | L5: 55.5 | M5: 52.2 | N5: 64.78333333 | O5: 64.78333333
A6: 2007 | B6: 57.2 | C6: 55.7 | D6: 66 | E6: 70 | F6: 64.6 | G6: 66.3 | H6: 67.4 | I6: 72.8 | J6: 71.8 | K6: 70.2 | L6: 52 | M6: 51.7 | N6: 63.80833333 | O6: 63.80833333
A7: 2008 | B7: 52.8 | C7: 49.9 | D7: 56.8 | E7: 65.8 | F7: 61 | G7: 57.6 | H7: 50.2 | I7: 47.9 | J7: 51.8 | K7: 43.5 | L7: 32.7 | M7: 28.2 | N7: 49.85 | O7: 49.85
A8: 2009 | B8: 26.1 | C8: 25 | D8: 25.2 | E8: 24.4 | F8: 23.8 | G8: 24.8 | H8: 24.7 | I8: 31.2 | J8: 28.6 | K8: 24.4 | L8: 18.1 | M8: 17.4 | N8: =AVERAGE(B8:M8) -> 24.475 | O8: 24.475
A9: 2010 | B9: 21.5 | C9: 22.5 | D9: 23.6 | E9: 27.1 | F9: 24.2 | G9: 26.9 | H9: 22.9 | I9: 31.8 | J9: 32.5 | K9: 28.2 | L9: 20.4 | M9: 20.7 | N9: 25.19166667 | O9: 25.19166667
A10: 2011 | B10: 22.8 | C10: 23.3 | D10: 22.8 | E10: 27.3 | F10: 30.2 | G10: 26.9 | H10: 27.7 | I10: 30.9 | J10: 27.7 | K10: 30.5 | L10: 25.7 | M10: 19.6 | N10: 26.28333333 | O10: 26.28333333
A11: 2012 | B11: 25.1 | C11: 25.7 | D11: 30.2 | E11: 33.9 | F11: 30.1 | G11: 24.8 | H11: 28.3 | I11: 27.4 | J11: 28 | K11: 26.1 | L11: 18.2 | M11: 18.5 | N11: 26.35833333 | O11: =AVERAGE(B11:M11) -> 26.35833333
A12: 2013 | B12: 18.5 | C12: 20 | D12: 25.5 | E12: 26.4 | F12: 26.9 | G12: 24.8 | H12: 23.9 | I12: 29.5 | J12: 23.6 | K12: 25.4 | L12: 21.7 | M12: 16.1 | N12: 23.525 | O12: =AVERAGE(B12:M12) -> 23.525
A13: 2014 | B13: 19.7 | C13: 19 | D13: 24.5 | E13: 26 | F13: 22 | G13: 24.7 | H13: 21.5 | I13: 23.8 | J13: 26.4 | K13: 23.6 | L13: 19.8 | M13: 14.2 | N13: 22.1 | O13: =AVERAGE(B13:M13) -> 22.1
A14: 2015 | B14: 14.44728201 | C14: 17.51185699 | D14: 18.53338198 | E14: 21.30609267 | F14: 23.78693907 | G14: 23.05727837 | H14: 21.59795695 | N14: =AVERAGE(B14:H14) -> 20.03439829 | O14: =AVERAGE(B14:M14) -> 20.03439829
B15: jan-dec | C15: feb-jan | D15: mar-feb | E15: apr-mar | F15: may-apr | G15: jun-may | H15: jul-jun | I15: aug-jul | J15: sep-aug | K15: oct-sep | L15: nov-oct | M15: dec-nov
A16: change_04 | B16: =B3-M2 -> 9.1 | C16: =C3-B3 -> 9.3 | D16: =D3-C3 -> -1 | E16: 12.7 | F16: -0.6 | G16: -14.6 | H16: 6.4 | I16: 8.1 | J16: -2.2 | K16: -1.9 | L16: -16.5 | M16: -6
A17: %change_04 | B17: =(B16/M2)*100 -> 20.72892938 | C17: =(C16/B3)*100 -> 17.54716981 | D17: =(D16/C3)*100 -> -1.605136437 | E17: 20.7177814 | F17: -0.8108108108 | G17: -19.89100817 | H17: 10.88435374 | I17: 12.42331288 | J17: -3.001364256 | K17: -2.672292546 | L17: -23.84393064 | M17: -11.38519924
B18: jan | C18: feb | D18: mar | E18: apr | F18: may | G18: jun | H18: jul | I18: aug | J18: sep | K18: oct | L18: nov | M18: dec | N18: ytd_avg
A19: chg_prv_04-03 | B19: =B3-B2 -> 4 | C19: =C3-C2 -> 21.7 | D19: 0 | E19: 8.6 | F19: 6.7 | G19: -7.3 | H19: 9.7 | I19: 10.8 | J19: 9.5 | K19: 11.8 | L19: 2.4 | M19: 2.8 | N19: =O3-O2 -> 6.725
A20: %chg_prv_04-03 | B20: =(B19/B2)*100 -> 8.163265306 | C20: =(C19/C2)*100 -> 53.44827586 | D20: 0 | E20: 13.14984709 | F20: 10.04497751 | G20: -11.04387292 | H20: 17.47747748 | I20: 17.28 | J20: 15.42207792 | K20: 20.55749129 | L20: 4.771371769 | M20: 6.378132118 | N20: =(N19/O2)*100 -> 11.86241364
B22: jan-dec | C22: feb-jan | D22: mar-feb | E22: apr-mar | F22: may-apr | G22: jun-may | H22: jul-jun | I22: aug-jul | J22: sep-aug | K22: oct-sep | L22: nov-oct | M22: dec-nov
A23: change_05 | B23: =B4-M3 -> 9.3 | C23: =C4-B4 -> 6.9 | D23: -2.6 | E23: 6.7 | F23: 11.2 | G23: -7.3 | H23: 0.8 | I23: 9.3 | J23: -14.7 | K23: 2 | L23: =L4-K4 -> -10.5 | M23: =M4-L4 -> -10.4
A24: %change_05 | B24: =(B23/M3)*100 -> 19.9143469 | C24: =(C23/B4)*100 -> 12.32142857 | D24: -4.13354531 | E24: 11.11111111 | F24: 16.71641791 | G24: -9.335038363 | H24: 1.128349788 | I24: 12.9707113 | J24: -18.14814815 | K24: 3.016591252 | L24: =(L23/K4)*100 -> -15.37335286 | M24: =(M23/L4)*100 -> -17.99307958
B25: jan | C25: feb | D25: mar | E25: apr | F25: may | G25: jun | H25: jul | I25: aug | J25: sep | K25: oct | L25: nov | M25: dec | N25: ytd_avg
A26: chg_prv_05-04 | B26: =B4-B3 -> 3 | C26: 0.6 | D26: -1 | E26: -7 | F26: 4.8 | G26: 12.1 | H26: =H4-H3 -> 6.5 | I26: 7.7 | J26: -4.8 | K26: -0.9 | L26: 5.1 | M26: 0.7 | N26: =O4-O3 -> 2.233333333
A27: %chg_prv_05-04 | B27: =(B26/B3)*100 -> 5.660377358 | C27: 0.963081862 | D27: -1.63132137 | E27: -9.459459459 | F27: 6.539509537 | G27: 20.57823129 | H27: 9.969325153 | I27: 10.5047749 | J27: -6.751054852 | K27: -1.300578035 | L27: =(L26/L3)*100 -> 9.677419355 | M27: =(M26/M3)*100 -> 1.498929336 | N27: =(N26/O3)*100 -> 3.521681997
B29: jan-dec | C29: feb-jan | D29: mar-feb | E29: apr-mar | F29: may-apr | G29: jun-may | H29: jul-jun | I29: aug-jul | J29: sep-aug | K29: oct-sep | L29: nov-oct | M29: dec-nov
A30: change_06 | B30: =B5-M4 -> 5.4 | C30: =C5-B5 -> 10.2 | D30: 4.3 | E30: 3.8 | F30: 2.9 | G30: -2.5 | H30: -2.9 | I30: =I5-H5 -> 6.4 | J30: =J5-I5 -> -12.2 | K30: =K5-J5 -> 0.8 | L30: =L5-K5 -> -8.1 | M30: =M5-L5 -> -3.3
A31: %change_06 | B31: =(B30/M4)*100 -> 11.39240506 | C31: =(C30/B5)*100 -> 19.31818182 | D31: 6.825396825 | E31: 5.646359584 | F31: 4.078762307 | G31: -3.378378378 | H31: -4.055944056 | I31: =(I30/H5)*100 -> 9.329446064 | J31: =(J30/I5)*100 -> -16.26666667 | K31: =(K30/J5)*100 -> 1.27388535 | L31: =(L30/K5)*100 -> -12.73584906 | M31: =(M30/L5)*100 -> -5.945945946
B32: jan | C32: feb | D32: mar | E32: apr | F32: may | G32: jun | H32: jul | I32: aug | J32: sep | K32: oct | L32: nov | M32: dec | N32: ytd_avg
A33: chg_prv_06-05 | B33: =B5-B4 -> -3.2 | C33: 0.1 | D33: 7 | E33: 4.1 | F33: -4.2 | G33: 0.6 | H33: =H5-H4 -> -3.1 | I33: -6 | J33: -3.5 | K33: -4.7 | L33: -2.3 | M33: 4.8 | N33: =O5-O4 -> -0.8666666667
A34: %chg_prv_06-05 | B34: =(B33/B4)*100 -> -5.714285714 | C34: 0.1589825119 | D34: 11.60862355 | E34: 6.119402985 | F34: -5.37084399 | G34: 0.8462623413 | H34: -4.323570432 | I34: =(I33/I4)*100 -> -7.407407407 | J34: =(J33/J4)*100 -> -5.279034691 | K34: =(K33/K4)*100 -> -6.881405564 | L34: =(L33/L4)*100 -> -3.979238754 | M34: =(M33/M4)*100 -> 10.12658228 | N34: =(N33/O4)*100 -> -1.320132013
B36: jan-dec | C36: feb-jan | D36: mar-feb | E36: apr-mar | F36: may-apr | G36: jun-may | H36: jul-jun | I36: aug-jul | J36: sep-aug | K36: oct-sep | L36: nov-oct | M36: dec-nov
A37: change_07 | B37: =B6-M5 -> 5 | C37: =C6-B6 -> -1.5 | D37: 10.3 | E37: 4 | F37: -5.4 | G37: 1.7 | H37: 1.1 | I37: 5.4 | J37: -1 | K37: -1.6 | L37: =L6-K6 -> -18.2 | M37: =M6-L6 -> -0.3
A38: %change_07 | B38: =(B37/M5)*100 -> 9.578544061 | C38: =(C37/B6)*100 -> -2.622377622 | D38: 18.49192101 | E38: 6.060606061 | F38: -7.714285714 | G38: 2.631578947 | H38: 1.659125189 | I38: 8.011869436 | J38: -1.373626374 | K38: -2.228412256 | L38: =(L37/K6)*100 -> -25.92592593 | M38: =(M37/L6)*100 -> -0.5769230769
B39: jan | C39: feb | D39: mar | E39: apr | F39: may | G39: jun | H39: jul | I39: aug | J39: sep | K39: oct | L39: nov | M39: dec | N39: ytd_avg
A40: chg_prv_07-06 | B40: =B6-B5 -> 4.4 | C40: -7.3 | D40: -1.3 | E40: -1.1 | F40: -9.4 | G40: -5.2 | H40: -1.2 | I40: -2.2 | J40: =J6-J5 -> 9 | K40: =K6-K5 -> 6.6 | L40: =L6-L5 -> -3.5 | M40: =M6-M5 -> -0.5 | N40: =O6-O5 -> -0.975
A41: %chg_prv_07-06 | B41: =(B40/B5)*100 -> 8.333333333 | C41: -11.58730159 | D41: -1.931649331 | E41: -1.547116737 | F41: -12.7027027 | G41: -7.272727273 | H41: -1.749271137 | I41: -2.933333333 | J41: =(J40/J5)*100 -> 14.33121019 | K41: =(K40/K5)*100 -> 10.37735849 | L41: =(L40/L5)*100 -> -6.306306306 | M41: =(M40/M5)*100 -> -0.9578544061 | N41: =(N40/O5)*100 -> -1.505016722
B43: jan-dec | C43: feb-jan | D43: mar-feb | E43: apr-mar | F43: may-apr | G43: jun-may | H43: jul-jun | I43: aug-jul | J43: sep-aug | K43: oct-sep | L43: nov-oct | M43: dec-nov
A44: change_08 | B44: =B7-M6 -> 1.1 | C44: =C7-B7 -> -2.9 | D44: 6.9 | E44: 9 | F44: -4.8 | G44: -3.4 | H44: -7.4 | I44: =I7-H7 -> -2.3 | J44: =J7-I7 -> 3.9 | K44: =K7-J7 -> -8.3 | L44: =L7-K7 -> -10.8 | M44: =M7-L7 -> -4.5
A45: %change_08 | B45: =(B44/M6)*100 -> 2.127659574 | C45: =(C44/B7)*100 -> -5.492424242 | D45: 13.82765531 | E45: 15.84507042 | F45: -7.294832827 | G45: -5.573770492 | H45: -12.84722222 | I45: =(I44/H7)*100 -> -4.581673307 | J45: =(J44/I7)*100 -> 8.141962422 | K45: =(K44/J7)*100 -> -16.02316602 | L45: =(L44/K7)*100 -> -24.82758621 | M45: =(M44/L7)*100 -> -13.76146789
B46: jan | C46: feb | D46: mar | E46: apr | F46: may | G46: jun | H46: jul | I46: aug | J46: sep | K46: oct | L46: nov | M46: dec | N46: ytd_avg
A47: chg_prv_08-07 | B47: =B7-B6 -> -4.4 | C47: -5.8 | D47: -9.2 | E47: -4.2 | F47: -3.6 | G47: -8.7 | H47: =H7-H6 -> -17.2 | I47: -24.9 | J47: -20 | K47: -26.7 | L47: -19.3 | M47: -23.5 | N47: =O7-O6 -> -13.95833333
A48: %chg_prv_08-07 | B48: =(B47/B6)*100 -> -7.692307692 | C48: -10.41292639 | D48: -13.93939394 | E48: -6 | F48: -5.572755418 | G48: -13.12217195 | H48: =(H47/H6)*100 -> -25.51928783 | I48: -34.2032967 | J48: -27.8551532 | K48: -38.03418803 | L48: -37.11538462 | M48: -45.45454545 | N48: =(N47/O6)*100 -> -21.87540812
B50: jan-dec | C50: feb-jan | D50: mar-feb | E50: apr-mar | F50: may-apr | G50: jun-may | H50: jul-jun | I50: aug-jul | J50: sep-aug | K50: oct-sep | L50: nov-oct | M50: dec-nov
A51: change_09 | B51: =B8-M7 -> -2.1 | C51: =C8-B8 -> -1.1 | D51: 0.2 | E51: -0.8 | F51: -0.6 | G51: 1 | H51: -0.1 | I51: 6.5 | J51: -2.6 | K51: =K8-J8 -> -4.2 | L51: =L8-K8 -> -6.3 | M51: =M8-L8 -> -0.7
A52: %change_09 | B52: =(B51/M7)*100 -> -7.446808511 | C52: =(C51/B8)*100 -> -4.214559387 | D52: 0.8 | E52: -3.174603175 | F52: -2.459016393 | G52: 4.201680672 | H52: -0.4032258065 | I52: 26.31578947 | J52: -8.333333333 | K52: =(K51/J8)*100 -> -14.68531469 | L52: =(L51/K8)*100 -> -25.81967213 | M52: =(M51/L8)*100 -> -3.867403315
B53: jan | C53: feb | D53: mar | E53: apr | F53: may | G53: jun | H53: jul | I53: aug | J53: sep | K53: oct | L53: nov | M53: dec | N53: ytd_avg
A54: chg_prv_09-08 | B54: =B8-B7 -> -26.7 | C54: -24.9 | D54: -31.6 | E54: -41.4 | F54: -37.2 | G54: -32.8 | H54: =H8-H7 -> -25.5 | I54: -16.7 | J54: -23.2 | K54: -19.1 | L54: -14.6 | M54: -10.8 | N54: =O8-O7 -> -25.375
A55: %chg_prv_09-08 | B55: =(B54/B7)*100 -> -50.56818182 | C55: -49.8997996 | D55: -55.63380282 | E55: -62.91793313 | F55: -60.98360656 | G55: -56.94444444 | H55: =(H54/H7)*100 -> -50.79681275 | I55: -34.86430063 | J55: -44.78764479 | K55: -43.90804598 | L55: -44.64831804 | M55: -38.29787234 | N55: =(N54/O7)*100 -> -50.90270812
B57: jan-dec | C57: feb-jan | D57: mar-feb | E57: apr-mar | F57: may-apr | G57: jun-may | H57: jul-jun | I57: aug-jul | J57: sep-aug | K57: oct-sep | L57: nov-oct | M57: dec-nov
A58: change_10 | B58: =B9-M8 -> 4.1 | C58: =C9-B9 -> 1 | D58: 1.1 | E58: 3.5 | F58: -2.9 | G58: 2.7 | H58: -4 | I58: 8.9 | J58: 0.7 | K58: -4.3 | L58: =L9-K9 -> -7.8 | M58: =M9-L9 -> 0.3
A59: %change_10 | B59: =(B58/M8)*100 -> 23.56321839 | C59: =(C58/B9)*100 -> 4.651162791 | D59: 4.888888889 | E59: 14.83050847 | F59: -10.70110701 | G59: 11.15702479 | H59: -14.86988848 | I59: 38.86462882 | J59: 2.201257862 | K59: -13.23076923 | L59: =(L58/K9)*100 -> -27.65957447 | M59: =(M58/L9)*100 -> 1.470588235
B60: jan | C60: feb | D60: mar | E60: apr | F60: may | G60: jun | H60: jul | I60: aug | J60: sep | K60: oct | L60: nov | M60: dec | N60: ytd_avg
A61: chg_prv_10-09 | B61: =B9-B8 -> -4.6 | C61: -2.5 | D61: -1.6 | E61: 2.7 | F61: 0.4 | G61: 2.1 | H61: =H9-H8 -> -1.8 | I61: 0.6 | J61: 3.9 | K61: 3.8 | L61: 2.3 | M61: 3.3 | N61: =O9-O8 -> 0.7166666667
A62: %chg_prv_10-09 | B62: =(B61/B8)*100 -> -17.62452107 | C62: -10 | D62: -6.349206349 | E62: 11.06557377 | F62: 1.680672269 | G62: 8.467741935 | H62: =(H61/H8)*100 -> -7.287449393 | I62: 1.923076923 | J62: 13.63636364 | K62: 15.57377049 | L62: 12.70718232 | M62: 18.96551724 | N62: =(N61/O8)*100 -> 2.928157984
B65: jan-dec | C65: feb-jan | D65: mar-feb | E65: apr-mar | F65: may-apr | G65: jun-may | H65: jul-jun | I65: aug-jul | J65: sep-aug | K65: oct-sep | L65: nov-oct | M65: dec-nov
A66: change_11 | B66: =B10-M9 -> 2.1 | C66: =C10-B10 -> 0.5 | D66: -0.5 | E66: 4.5 | F66: 2.9 | G66: -3.3 | H66: 0.8 | I66: 3.2 | J66: -3.2 | K66: 2.8 | L66: -4.8 | M66: -6.1
A67: %change_11 | B67: =(B66/M9)*100 -> 10.14492754 | C67: =(C66/B10)*100 -> 2.192982456 | D67: -2.145922747 | E67: 19.73684211 | F67: 10.62271062 | G67: -10.92715232 | H67: 2.973977695 | I67: 11.55234657 | J67: -10.35598706 | K67: 10.10830325 | L67: -15.73770492 | M67: -23.73540856
B68: jan | C68: feb | D68: mar | E68: apr | F68: may | G68: jun | H68: jul | I68: aug | J68: sep | K68: oct | L68: nov | M68: dec | N68: ytd_avg
A69: chg_prv_11-10 | B69: =B10-B9 -> 1.3 | C69: 0.8 | D69: -0.8 | E69: 0.2 | F69: 6 | G69: 0 | H69: =H10-H9 -> 4.8 | I69: -0.9 | J69: -4.8 | K69: 2.3 | L69: 5.3 | M69: -1.1 | N69: =O10-O9 -> 1.091666667
A70: %chg_prv_11-10 | B70: =(B69/B9)*100 -> 6.046511628 | C70: 3.555555556 | D70: -3.389830508 | E70: 0.7380073801 | F70: 24.79338843 | G70: 0 | H70: =(H69/H9)*100 -> 20.96069869 | I70: -2.830188679 | J70: -14.76923077 | K70: 8.156028369 | L70: 25.98039216 | M70: -5.314009662 | N70: =(N69/O9)*100 -> 4.333443599
B72: jan-dec | C72: feb-jan | D72: mar-feb | E72: apr-mar | F72: may-apr | G72: jun-may | H72: jul-jun | I72: aug-jul | J72: sep-aug | K72: oct-sep | L72: nov-oct | M72: dec-nov
A73: change_12 | B73: =B11-M10 -> 5.5 | C73: =C11-B11 -> 0.6 | D73: 4.5 | E73: 3.7 | F73: -3.8 | G73: -5.3 | H73: 3.5 | I73: =I11-H11 -> -0.9 | J73: 0.6 | K73: =K11-J11 -> -1.9 | L73: =L11-K11 -> -7.9 | M73: 0.3
A74: %change_12 | B74: =(B73/M10)*100 -> 28.06122449 | C74: =(C73/B11)*100 -> 2.390438247 | D74: 17.50972763 | E74: 12.25165563 | F74: -11.20943953 | G74: -17.60797342 | H74: 14.11290323 | I74: -3.180212014 | J74: 2.189781022 | K74: =(K73/J11)*100 -> -6.785714286 | L74: =(L73/K11)*100 -> -30.26819923 | M74: 1.648351648
B75: jan | C75: feb | D75: mar | E75: apr | F75: may | G75: jun | H75: jul | I75: aug | J75: sep | K75: oct | L75: nov | M75: dec | N75: ytd_avg
A76: chg_prv_12-11 | B76: =B11-B10 -> 2.3 | C76: 2.4 | D76: 7.4 | E76: 6.6 | F76: -0.1 | G76: -2.1 | H76: =H11-H10 -> 0.6 | I76: -3.5 | J76: =J11-J10 -> 0.3 | K76: -4.4 | L76: -7.5 | M76: =M11-M10 -> -1.1 | N76: =O11-O10 -> 0.075
A77: %chg_prv_12-11 | B77: =(B76/B10)*100 -> 10.0877193 | C77: 10.30042918 | D77: 32.45614035 | E77: 24.17582418 | F77: -0.3311258278 | G77: -7.80669145 | H77: 2.166064982 | I77: =(I76/I10)*100 -> -11.32686084 | J77: 1.083032491 | K77: =(K76/K10)*100 -> -14.42622951 | L77: -29.18287938 | M77: =(M76/M10)*100 -> -5.612244898 | N77: =(N76/O10)*100 -> 0.2853519341
B79: jan-dec | C79: feb-jan | D79: mar-feb | E79: apr-mar | F79: may-apr | G79: jun-may | H79: jul-jun | I79: aug-jul | J79: sep-aug | K79: oct-sep | L79: nov-oct | M79: dec-nov
A80: change_13 | B80: =B12-M11 -> 0 | C80: =C12-B12 -> 1.5 | D80: =D12-C12 -> 5.5 | E80: =E12-D12 -> 0.9 | F80: =F12-E12 -> 0.5 | G80: -2.1 | H80: -0.9 | I80: 5.6 | J80: -5.9 | K80: 1.8 | L80: -3.7 | M80: -5.6
A81: %change_13 | B81: =(B80/M11)*100 -> 0 | C81: =(C80/B12)*100 -> 8.108108108 | D81: =(D80/C12)*100 -> 27.5 | E81: =(E80/D12)*100 -> 3.529411765 | F81: =(F80/E12)*100 -> 1.893939394 | G81: -7.80669145 | H81: -3.629032258 | I81: 23.43096234 | J81: -20 | K81: 7.627118644 | L81: -14.56692913 | M81: -25.80645161
B82: jan | C82: feb | D82: mar | E82: apr | F82: may | G82: jun | H82: jul | I82: aug | J82: sep | K82: oct | L82: nov | M82: dec | N82: ytd_avg
A83: chg_prv_13-12 | B83: =B12-B11 -> -6.6 | C83: =C12-C11 -> -5.7 | D83: =D12-D11 -> -4.7 | E83: =E12-E11 -> -7.5 | F83: =F12-F11 -> -3.2 | G83: 0 | H83: =H12-H11 -> -4.4 | I83: 2.1 | J83: =J12-J11 -> -4.4 | K83: -0.7 | L83: =L12-L11 -> 3.5 | M83: -2.4 | N83: =O12-O11 -> -2.833333333
A84: %chg_prv_13-12 | B84: =(B83/B11)*100 -> -26.29482072 | C84: =(C83/C11)*100 -> -22.17898833 | D84: =(D83/D11)*100 -> -15.56291391 | E84: =(E83/E11)*100 -> -22.12389381 | F84: =(F83/F11)*100 -> -10.63122924 | G84: 0 | H84: =(H83/H11)*100 -> -15.54770318 | I84: 7.664233577 | J84: =(J83/J11)*100 -> -15.71428571 | K84: -2.681992337 | L84: =(L83/L11)*100 -> 19.23076923 | M84: -12.97297297 | N84: =(N83/O11)*100 -> -10.74928865
B86: jan-dec | C86: feb-jan | D86: mar-feb | E86: apr-mar | F86: may-apr | G86: jun-may | H86: jul-jun | I86: aug-jul | J86: sep-aug | K86: oct-sep | L86: nov-oct | M86: dec-nov
A87: change_14 | B87: =B13-M12 -> 3.6 | C87: =C13-B13 -> -0.7 | D87: 5.5 | E87: 1.5 | F87: -4 | G87: 2.7 | H87: -3.2 | I87: 2.3 | J87: 2.6 | K87: -2.8 | L87: -3.8 | M87: -5.6
A88: %change_14 | B88: =(B87/M12)*100 -> 22.36024845 | C88: =(C87/B13)*100 -> -3.553299492 | D88: 28.94736842 | E88: 6.12244898 | F88: -15.38461538 | G88: 12.27272727 | H88: -12.95546559 | I88: 10.69767442 | J88: 10.92436975 | K88: -10.60606061 | L88: -16.10169492 | M88: -28.28282828
B89: jan | C89: feb | D89: mar | E89: apr | F89: may | G89: jun | H89: jul | I89: aug | J89: sep | K89: oct | L89: nov | M89: dec | N89: ytd_avg
A90: chg_prv_14-13 | B90: =B13-B12 -> 1.2 | C90: -1 | D90: -1 | E90: -0.4 | F90: -4.9 | G90: -0.1 | H90: =H13-H12 -> -2.4 | I90: -5.7 | J90: =J13-J12 -> 2.8 | K90: -1.8 | L90: =L13-L12 -> -1.9 | M90: -1.9 | N90: =O13-O12 -> -1.425
A91: %chg_prv_14-13 | B91: =(B90/B12)*100 -> 6.486486486 | C91: -5 | D91: -3.921568627 | E91: -1.515151515 | F91: -18.21561338 | G91: -0.4032258065 | H91: =(H90/H12)*100 -> -10.041841 | I91: -19.3220339 | J91: =(J90/J12)*100 -> 11.86440678 | K91: -7.086614173 | L91: =(L90/L12)*100 -> -8.755760369 | M91: -11.80124224 | N91: =(N90/O12)*100 -> -6.05738576
B93: jan-dec | C93: feb-jan | D93: mar-feb | E93: apr-mar | F93: may-apr | G93: jun-may | H93: jul-jun | I93: aug-jul | J93: sep-aug | K93: oct-sep | L93: nov-oct | M93: dec-nov
A94: change_15 | B94: =B14-M13 -> 0.2472820139 | C94: =C14-B14 -> 3.064574973 | D94: =D14-C14 -> 1.021524991 | E94: 2.77271069 | F94: 2.480846406 | G94: -0.7296607078 | H94: -1.459321416
A95: %change_15 | B95: =(B94/M13)*100 -> 1.741422633 | C95: =(C94/B14)*100 -> 21.21212121 | D95: =(D94/C14)*100 -> 5.833333333 | E95: =(E94/D14)*100 -> 14.96062992 | F95: 11.64383562 | G95: -3.067484663 | H95: -6.329113924
B96: jan | C96: feb | D96: mar | E96: apr | F96: may | G96: jun | H96: jul | I96: aug | J96: sep | K96: oct | L96: nov | M96: dec | N96: ytd_avg_total
A97: chg_prv_15-14 | B97: =B14-B13 -> -5.252717986 | C97: =C14-C13 -> -1.488143013 | D97: =D14-D13 -> -5.966618023 | E97: -4.693907333 | F97: 1.786939073 | G97: -1.642721634 | H97: 0.09795695002 | N97: =N14-N13 -> -2.065601709
A98: %chg_prv_15-14 | B98: =(B97/B13)*100 -> -26.66354308 | C98: =(C97/C13)*100 -> -7.83233165 | D98: =(D97/D13)*100 -> -24.35354295 | E98: -18.05348974 | F98: 8.122450333 | G98: -6.650694876 | H98: 0.455613721 | N98: =(N97/N13)*100 -> -9.34661407

Sheet work details
A1: Leader – Telegram: Help-Wanted Ads
A3: cvcerd folder, economic indicators folder, data, folder, empl_unempl_jobs folder
A4: File names: : lt_hlp_wntd_1stlastsun_date.xls, lt_hlp_wntd.xls
A7: Contact: Lisa Behlke | B7: lisa.behlke@ecpc.com 715-833-9268 (ext 14)
A8: -Sent directly to me by email about the 15th of each month
A10: I receive the number of ads appearing in the paper on the first and last Sunday of each month. This data is in the spreadsheet “lt_hlp_wntd_1stlastsun_date.xls”
A12: -This data is then entered into another spreadsheet named “lt_hlp_wntd.xls” in the biweekly tab
A13: -Calculate average of 1st and last numbers in monthly tab
A14: -Pull down index formula
A16: lt_hwa – An average of Leader Telegram Help Wanted Ads (index base 2000=100)
A19: Report: Page 10
A20: Web Data Folder, employment folder, cvcerd_hlp_wntd_data_2010-2019.xls

Sheet graphs
